bitfinex/quotes_SOLUSD_20250815
["timestamp","ask_amount","ask_price","bid_price","bid_amount"]
[1755286623887,0.06,184.17,184.15,21.40342497]
[1755286624281,3.65509525,184.17,184.15,26.83378065]
[1755286624590,0.06,184.17,184.15,26.83378065]
[1755286624792,3.65419112,184.17,184.15,26.83378065]
[1755286624989,0.06,184.17,184.15,26.83378065]
[1755286625509,0.06,184.17,184.15,27.37681621]
[1755286625887,0.06,184.17,184.16,31.6372094]
[1755286626090,0.06,184.17,184.16,32.2972094]
[1755286626287,0.06,184.17,184.16,26.83348578]
[1755286626487,0.06,184.17,184.16,106.03348578]
[1755286627221,0.06,184.19,184.17,15.10621557]
[1755286627506,1e-08,184.19,184.18,46.74342497]
[1755286627672,1e-08,184.19,184.18,165.44342497]
[1755286628080,1e-08,184.19,184.18,167.61834297]
[1755286628581,1e-08,184.19,184.18,173.04781413]
[1755286629184,1e-08,184.19,184.18,134.20781413]
[1755286629511,1e-08,184.19,184.18,41.014918]
[1755286629715,1e-08,184.19,184.18,38.84]
[1755286630025,6.35720941,184.19,184.18,38.84]
[1755286630482,11.7863858,184.19,184.18,38.84]
[1755286630706,15.37387128,184.19,184.15,38.82]
[1755286630902,11.7863858,184.19,184.15,38.82]
[1755286631100,12.1178858,184.19,184.15,38.82]
[1755286631427,0.33150001,184.19,184.15,45.1172094]
[1755286632730,9.7212592,184.19,184.15,38.82]
[1755286632914,10.4412592,184.19,184.15,38.82]
[1755286634214,0.33150001,184.19,184.16,0.66]
[1755286638142,9.38975919,184.17,184.15,38.85]
[1755286638345,9.38975919,184.16,184.15,38.85]
[1755286638534,10.09975919,184.16,184.15,38.85]
[1755286639448,13.68595508,184.16,184.15,38.85]
[1755286639735,19.11601589,184.16,184.15,38.85]
[1755286640242,0.33150001,184.19,184.15,128.15975919]
[1755286640425,0.33150001,184.19,184.16,10.10975919]
[1755286640621,0.33150001,184.19,184.16,9.38975919]
[1755286640816,0.33150001,184.19,184.17,0.72]
[1755286641212,0.33150001,184.19,184.18,39.54]
[1755286641424,0.33150001,184.19,184.18,48.92975919]
[1755286642740,0.33150001,184.19,184.18,54.35923035]
[1755286643112,0.33150001,184.19,184.18,48.92975919]
[1755286644830,0.33150001,184.19,184.18,48.20975919]
[1755286645431,0.33150001,184.19,184.18,38.82]
[1755286645842,0.33150001,184.19,184.18,54.35923035]
[1755286646151,0.33150001,184.19,184.18,48.92975919]
[1755286646326,0.33150001,184.19,184.18,133.55923035]
[1755286647968,0.33150001,184.19,184.18,118.74]
[1755286648141,0.33150001,184.19,184.18,132.83923035]
[1755286648466,0.33150001,184.19,184.18,128.12975919]
[1755286649569,0.33150001,184.19,184.18,118.02]
[1755286649758,1.04150001,184.19,184.18,79.2]
[1755286650065,1.04150001,184.19,184.18,118.02]
[1755286650829,10.4312592,184.19,184.18,79.2]
[1755286651042,14.01454842,184.19,184.16,38.82]
[1755286651262,9.38975919,184.17,184.15,38.85]
[1755286651638,0.71,184.16,184.15,38.85]
[1755286652046,6.14006081,184.16,184.15,38.85]
[1755286652262,19.10928715,184.16,184.15,38.85]
[1755286653334,18.39928715,184.16,184.15,38.85]
[1755286653565,3.57946715,184.16,184.15,38.85]
[1755286653737,3.57946715,184.18,184.15,38.85]
[1755286653951,4.28946715,184.17,184.15,38.85]
[1755286654150,3.57946715,184.16,184.15,38.85]
[1755286654732,1e-08,184.19,184.15,54.39011487]
[1755286654937,1e-08,184.19,184.18,9.38975919]
[1755286655136,1e-08,184.19,184.18,48.20975919]
[1755286655343,1e-08,184.19,184.18,48.92975919]
[1755286655938,1e-08,184.19,184.18,69.46544592]
[1755286656350,1e-08,184.19,184.18,70.00839303]
[1755286656742,1e-08,184.19,184.18,66.24683419]
[1755286658744,1e-08,184.19,184.18,69.99913409]
[1755286661275,1e-08,184.19,184.18,149.19913409]
[1755286661457,1e-08,184.19,184.18,148.65618698]
[1755286664840,1e-08,184.19,184.18,9.38050025]
[1755286664841,3.60383619,184.19,184.18,9.38050025]
[1755286665045,4.31383619,184.19,184.16,9.38050025]
[1755286665245,3.60383618,184.18,184.17,54.59621557]
[1755286665547,3.60389974,184.18,184.17,48.18050025]
[1755286665742,3.60389974,184.18,184.16,5.42985673]
[1755286665743,4.32389974,184.18,184.15,0.03]
[1755286666109,4.32389974,184.17,184.16,38.8]
[1755286666383,3.60389974,184.17,184.16,53.61056106]
[1755286666746,3.60389974,184.17,184.16,54.30056106]
[1755286667378,1e-08,184.19,184.17,15.10621557]
[1755286667669,1e-08,184.19,184.18,48.18050025]
[1755286667973,1e-08,184.19,184.18,53.60997141]
[1755286668145,3.60478386,184.19,184.18,53.60997141]
[1755286668345,1e-08,184.19,184.18,54.29997141]
[1755286668548,1e-08,184.19,184.18,53.60997141]
[1755286668955,1e-08,184.19,184.18,54.29997141]
[1755286670960,1e-08,184.19,184.18,53.60997141]
[1755286671361,1e-08,184.19,184.18,148.60618698]
[1755286672681,1e-08,184.19,184.18,139.22568673]
[1755286672977,1e-08,184.19,184.18,138.53568673]
[1755286673154,1e-08,184.19,184.18,123.42947116]
[1755286674284,1e-08,184.19,184.18,139.22568673]
[1755286674989,1e-08,184.19,184.18,138.53568673]
[1755286675154,1e-08,184.19,184.18,123.42947116]
[1755286675881,1e-08,184.19,184.18,139.22568673]
[1755286676554,1e-08,184.19,184.18,165.22568673]
[1755286677977,1e-08,184.19,184.18,139.22568673]
[1755286679772,1e-08,184.19,184.18,100.42568673]
[1755286679983,1e-08,184.19,184.18,164.53568673]
[1755286680582,1e-08,184.19,184.18,165.22568673]
[1755286680955,1e-08,184.19,184.18,164.53568673]
[1755286681380,1e-08,184.19,184.18,165.22568673]
[1755286684693,0.06,184.22,184.21,41.10621557]
[1755286684902,1e-08,184.23,184.21,133.64907426]
[1755286685185,0.06,184.25,184.23,41.10621557]
[1755286685396,1e-08,184.24,184.23,86.07616148]
[1755286685570,1e-08,184.24,184.23,165.96616148]
[1755286685765,1e-08,184.24,184.23,165.42336172]
[1755286685989,0.78,184.35,184.28,15.10621557]
[1755286686289,0.78,184.35,184.33,5.62714615]
[1755286686497,0.78,184.35,184.33,59.53336172]
[1755286686498,0.06,184.35,184.33,59.53336172]
[1755286686794,0.06,184.35,184.33,91.64841461]
[1755286687028,0.06,184.35,184.33,91.50091989]
[1755286687292,0.06,184.35,184.33,90.95841461]
[1755286687889,0.06,184.36,184.34,15.10621557]
[1755286688079,2.82815569,184.47,184.34,15.10621557]
[1755286688080,0.72,184.47,184.41,15.10621557]
[1755286688284,0.72,184.47,184.46,5.62714615]
[1755286688588,0.72,184.49,184.47,5.42093565]
[1755286688761,0.72,184.49,184.48,44.46714615]
[1755286689183,0.72,184.49,184.48,38.84]
[1755286689395,3.60912257,184.53,184.48,44.46714615]
[1755286689569,0.72,184.55,184.52,5.62714615]
[1755286689766,0.72,184.54,184.52,38.86]
[1755286690001,0.72,184.53,184.52,38.86]
[1755286690372,0.72,184.53,184.52,44.48714615]
[1755286690671,0.72,184.53,184.52,48.21065794]
[1755286691988,0.72,184.53,184.52,38.86]
[1755286692200,0.72,184.53,184.52,48.21065794]
[1755286692703,0.72,184.53,184.52,38.82]
[1755286695794,0.72,184.53,184.51,38.78]
[1755286695993,0.72,184.52,184.51,38.78]
[1755286699601,4.32912257,184.54,184.51,38.78]
[1755286699810,0.72,184.54,184.51,38.78]
[1755286700007,0.72,184.53,184.51,38.78]
[1755286700307,0.06,184.52,184.51,38.78]
[1755286700890,0.06,184.52,184.51,48.13065794]
[1755286701092,0.06,184.52,184.51,148.55663395]
[1755286702408,0.06,184.52,184.51,147.81663395]
[1755286702595,0.06,184.52,184.51,148.51663395]
[1755286704586,0.06,184.52,184.51,127.29065794]
[1755286705603,0.06,184.52,184.51,53.51041838]
[1755286705905,0.06,184.52,184.51,54.21041838]
[1755286706103,0.06,184.52,184.51,69.31663395]
[1755286706314,0.06,184.52,184.51,148.51663395]
[1755286708294,0.06,184.52,184.51,93.97041838]
[1755286708508,0.06,184.52,184.51,132.71041838]
[1755286708906,0.06,184.52,184.51,147.81663395]
[1755286709110,0.06,184.52,184.51,148.51663395]
[1755286709293,0.06,184.52,184.51,152.12355895]
[1755286710823,0.06,184.52,184.51,151.42355895]
[1755286711127,0.78,184.52,184.51,117.94]
[1755286711287,0.06,184.52,184.51,117.94]
[1755286711612,0.06,184.52,184.51,132.71041838]
[1755286712202,0.06,184.52,184.51,147.81663395]
[1755286712398,0.06,184.52,184.51,148.51663395]
[1755286712919,0.06,184.52,184.51,144.77461814]
[1755286713815,0.06,184.54,184.51,144.77461814]
[1755286713816,0.06,184.54,184.52,15.10621557]
[1755286714120,0.06,184.54,184.53,70.34864213]
[1755286714294,0.06,184.54,184.53,76.30973246]
[1755286714616,0.06,184.54,184.53,77.00973246]
[1755286715115,0.06,184.54,184.53,76.46781516]
[1755286715994,0.06,184.54,184.53,155.66781516]
[1755286716408,0.06,184.54,184.53,157.83883716]
[1755286719098,0.06,184.54,184.53,78.63883716]
[1755286719600,0.06,184.54,184.53,77.93883716]
[1755286720004,0.06,184.54,184.53,78.63883716]
[1755286720200,0.06,184.54,184.53,77.93883716]
[1755286720414,0.06,184.54,184.53,93.04505273]
[1755286720788,4.34021936,184.54,184.53,38.74]
[1755286724298,8.78764238,184.54,184.53,38.74]
[1755286724500,3.62021936,184.54,184.53,64.87403073]
[1755286724796,3.62021936,184.54,184.53,44.34864213]
[1755286725022,3.62021936,184.54,184.53,44.15917303]
[1755286726031,3.62021936,184.54,184.53,38.74]
[1755286726336,4.33021936,184.54,184.53,38.74]
[1755286726505,3.62021936,184.54,184.53,44.15917303]
[1755286726700,3.62021936,184.54,184.53,49.76781516]
[1755286728421,3.62021936,184.54,184.53,65.57403073]
[1755286728623,3.62021936,184.54,184.53,91.57403073]
[1755286729400,3.62021936,184.54,184.53,92.11594803]
[1755286730803,8.77764238,184.54,184.53,4.507423]
[1755286731004,9.93886149,184.54,184.49,5.60864213]
[1755286731206,9.93886149,184.54,184.5,38.72]
[1755286731207,4.50987091,184.52,184.5,38.72]
[1755286731406,3.56021936,184.51,184.5,44.32864213]
[1755286731937,8.07009027,184.51,184.5,38.72]
[1755286732123,4.27021936,184.51,184.5,38.72]
[1755286733116,4.27021936,184.51,184.5,38.75]
[1755286734828,3.56021936,184.51,184.5,38.75]
[1755286736436,19.04465371,184.51,184.5,0.03]
[1755286736649,23.56142277,184.51,184.5,0.03]
[1755286736820,19.04465371,184.51,184.5,0.03]
[1755286737540,23.56204433,184.51,184.5,0.03]
[1755286738418,13.62489327,184.51,184.5,0.03]
[1755286738623,4.27021936,184.51,184.5,0.03]
[1755286739019,3.56021936,184.51,184.5,0.03]
[1755286739717,4.27021936,184.51,184.5,0.03]
[1755286739915,3.56021936,184.51,184.5,38.75]
[1755286740125,3.56021936,184.51,184.5,48.10467391]
[1755286740313,19.04465371,184.51,184.5,0.03]
[1755286740721,13.62489327,184.51,184.5,0.03]
[1755286740923,8.78760998,184.51,184.5,0.03]
[1755286741455,18.14228389,184.51,184.5,0.03]
[1755286741832,13.62489327,184.51,184.5,0.03]
[1755286742042,23.56204433,184.51,184.5,0.03]
[1755286742345,3.56021936,184.51,184.5,0.03]
[1755286744162,12.91489327,184.52,184.5,0.03]
[1755286744329,3.56021936,184.51,184.5,0.03]
[1755286744530,12.96632851,184.52,184.5,0.03]
[1755286744762,3.6116546,184.51,184.5,0.03]
[1755286745531,3.6116546,184.51,184.5,38.77]
[1755286747462,13.67632851,184.52,184.5,38.77]
[1755286747640,3.6116546,184.51,184.5,38.77]
[1755286747838,13.67632851,184.51,184.5,38.77]
[1755286748048,19.09608895,184.51,184.5,0.03]
[1755286750853,26.0,184.48,184.44,0.03]
[1755286751067,9.35467391,184.45,184.44,0.03]
[1755286751255,12.96632851,184.45,184.44,0.03]
[1755286751555,39.67632851,184.45,184.44,0.03]
[1755286751744,45.09785195,184.45,184.44,0.03]
[1755286752642,46.7584564,184.45,184.44,0.03]
[1755286755151,26.37986391,184.45,184.44,0.03]
[1755286755473,20.7584564,184.45,184.44,0.03]
[1755286757465,15.36458555,184.45,184.44,0.03]
[1755286760460,26.0,184.42,184.4,0.03]
[1755286760767,9.23306211,184.41,184.4,0.03]
[1755286761349,9.92306211,184.41,184.4,0.03]
[1755286761749,15.34576152,184.41,184.4,0.03]
[1755286762268,15.67166152,184.41,184.4,0.03]
[1755286762463,11.37000692,184.41,184.4,0.03]
[1755286763144,14.95651736,184.41,184.4,0.03]
[1755286763548,15.64651736,184.41,184.4,0.03]
[1755286765174,10.02510985,184.41,184.4,0.03]
[1755286765347,15.64651736,184.41,184.4,0.03]
[1755286765746,14.95651736,184.41,184.4,0.03]
[1755286767650,15.64651736,184.41,184.4,0.03]
[1755286768361,14.95651736,184.41,184.4,0.03]
[1755286770371,26.0,184.39,184.38,0.03]
[1755286770673,73.94791795,184.39,184.38,0.03]
[1755286771247,68.32651044,184.39,184.38,0.03]
[1755286771445,35.20791795,184.39,184.38,0.69]
[1755286771771,35.20791795,184.39,184.38,0.03]
[1755286772274,41.32120554,184.39,184.38,0.03]
[1755286772573,15.10621557,184.38,184.34,0.03]
[1755286772754,31.62140751,184.35,184.34,0.03]
[1755286772950,35.20791795,184.35,184.34,0.03]
[1755286773157,39.68507941,184.35,184.34,0.03]
[1755286773467,35.89791795,184.35,184.34,0.03]
[1755286773978,15.10621557,184.34,184.32,0.03]
[1755286774173,5.42534722,184.32,184.31,0.1]
[1755286774366,20.25467268,184.32,184.31,0.1]
[1755286774754,19.80042663,184.32,184.31,0.1]
[1755286776081,19.79661073,184.32,184.31,0.1]
[1755286776964,36.05088825,184.32,184.31,0.1]
[1755286777171,41.10621557,184.29,184.28,0.03]
[1755286777474,93.54548698,184.29,184.28,0.03]
[1755286777777,89.76413352,184.29,184.28,0.03]
[1755286778281,99.65547882,184.29,184.28,0.03]
[1755286780369,95.19036391,184.29,184.28,0.03]
[1755286780681,108.7559399,184.29,184.16,38.79]
[1755286780893,30.46042901,184.25,184.19,0.66]
[1755286781096,26.0,184.21,184.18,0.66]
[1755286781391,3.58651044,184.2,184.17,0.66]
[1755286781776,3.58651044,184.2,184.16,0.03]
[1755286781777,43.03651044,184.2,184.16,0.03]
[1755286781986,5.62140751,184.17,184.16,0.03]
[1755286782488,11.05117348,184.17,184.16,0.69]
[1755286783907,9.01572501,184.19,184.16,0.69]
[1755286784071,5.94730751,184.17,184.16,0.69]
[1755286786174,0.3259,184.17,184.16,0.69]
[1755286787388,5.94730751,184.17,184.16,0.69]
[1755286787878,9.53381795,184.17,184.16,0.69]
[1755286788276,5.94730751,184.17,184.16,0.03]
[1755286788477,11.37707348,184.17,184.16,0.03]
[1755286788991,15.68358392,184.17,184.16,0.03]
[1755286789196,30.78979949,184.17,184.16,0.03]
[1755286789384,46.72762308,184.16,184.14,0.03]
[1755286789588,52.42973232,184.15,184.14,0.03]
[1755286789799,14.36973232,184.15,184.14,0.03]
[1755286789996,53.14973232,184.15,184.14,0.03]
[1755286790299,19.080088,184.15,184.14,0.03]
[1755286790596,53.41827363,184.15,184.14,0.03]
[1755286790798,54.13827363,184.15,184.14,0.03]
[1755286791215,73.68630357,184.15,184.14,0.03]
[1755286791373,69.2444892,184.15,184.13,0.03]
[1755286791683,29.58651044,184.14,184.13,0.03]
[1755286791885,3.58651044,184.14,184.13,0.03]
[1755286792083,3.58651044,184.15,184.13,0.03]
[1755286792282,9.20791795,184.15,184.13,0.75]
[1755286792472,5.62140751,184.15,184.14,0.72]
[1755286792676,9.20791795,184.15,184.13,0.03]
[1755286792879,9.20791795,184.14,184.13,0.03]
[1755286793189,9.92791795,184.14,184.13,0.03]
[1755286794013,25.03413352,184.14,184.12,0.03]
[1755286794188,15.10621557,184.12,184.11,0.03]
[1755286794379,24.31413352,184.12,184.11,0.03]
[1755286794579,25.03413352,184.12,184.11,0.03]
[1755286794784,28.81611195,184.12,184.11,0.03]
[1755286796395,34.24735244,184.12,184.11,0.03]
[1755286798620,34.24735244,184.12,184.11,1e-08]
[1755286798794,34.24735244,184.12,184.1,1e-08]
[1755286798991,34.24735244,184.12,184.07,0.10334565]
[1755286798992,41.10621557,184.09,184.07,0.10334565]
[1755286799302,66.95611195,184.08,184.07,0.10334565]
[1755286799808,67.67611195,184.08,184.07,0.10334565]
[1755286800189,66.95611195,184.08,184.07,0.10334565]
[1755286800389,48.84750934,184.08,184.07,0.10334565]
[1755286800797,3.58651044,184.08,184.07,0.82334565]
[1755286800996,3.58651044,184.09,184.07,10.22673159]
[1755286801326,3.54041082,184.11,184.08,0.72]
[1755286801513,9.40338594,184.09,184.07,0.82334565]
[1755286801697,12.94379676,184.08,184.07,0.10334565]
[1755286801891,3.54041082,184.08,184.07,0.10334565]
[1755286802495,3.54041082,184.08,184.07,0.82334565]
[1755286803122,49.52173097,184.08,184.07,0.10334565]
[1755286803429,48.80173097,184.08,184.07,0.10334565]
[1755286803721,38.94379676,184.08,184.07,0.82334565]
[1755286803898,44.37621744,184.08,184.07,0.82334565]
[1755286804211,44.37621744,184.08,184.07,0.10334565]
[1755286804212,45.09621744,184.08,184.07,0.10334565]
[1755286804403,49.52173097,184.08,184.07,0.10334565]
[1755286805203,48.80173097,184.08,184.07,0.10334565]
[1755286805696,49.52173097,184.08,184.07,0.10334565]
[1755286805895,10.0,184.07,184.05,0.03]
[1755286806112,26.0,184.04,184.03,0.03]
[1755286806412,83.39739815,184.04,184.03,0.03]
[1755286806922,87.81876364,184.04,184.03,0.03]
[1755286807706,88.53876364,184.04,184.03,0.03]
[1755286807906,87.81876364,184.04,184.03,0.03]
[1755286808419,83.39739815,184.04,184.03,0.03]
[1755286808594,3.54041082,184.04,184.03,0.75]
[1755286808929,3.54041082,184.07,184.03,10.15338594]
[1755286809100,3.54041082,184.06,184.04,0.72]
[1755286809294,3.54041082,184.07,184.04,0.72]
[1755286809495,3.54041082,184.06,184.04,0.72]
[1755286809695,3.54041082,184.07,184.04,0.72]
[1755286809896,3.54041082,184.06,184.04,0.72]
[1755286810103,3.54041082,184.07,184.04,0.72]
[1755286810315,3.54041082,184.06,184.05,0.72]
[1755286810519,3.54041082,184.06,184.03,0.03]
[1755286810520,12.94379676,184.06,184.03,0.03]
[1755286810723,35.40338594,184.04,184.03,0.03]
[1755286811027,17.36516225,184.04,184.03,0.03]
[1755286811220,18.08516225,184.04,184.03,0.03]
[1755286811530,38.94379676,184.04,184.03,0.03]
[1755286811696,38.94379676,184.04,184.03,0.75]
[1755286811894,3.54041082,184.04,184.03,0.75]
[1755286812521,44.37739815,184.04,184.03,0.03]
[1755286813194,45.09739815,184.04,184.03,0.03]
[1755286814332,49.51876364,184.04,184.03,0.03]
[1755286814500,48.79876364,184.04,184.03,0.03]
[1755286815210,45.06739815,184.04,184.03,0.03]
[1755286815410,19.06739815,184.04,184.03,0.03]
[1755286815608,18.37739815,184.04,184.03,0.03]
[1755286816125,13.40947363,184.04,184.03,0.03]
[1755286816422,3.54041082,184.04,184.03,0.72]
[1755286816806,7.98037972,184.04,184.03,0.72]
[1755286817103,3.54041082,184.04,184.03,10.12338594]
[1755286817424,3.54041082,184.04,184.03,15.55728258]
[1755286817723,3.54041082,184.04,184.03,10.12338594]
[1755286817918,3.54041082,184.04,184.03,0.72]
[1755286818319,3.54041082,184.04,184.03,15.55728258]
[1755286818903,3.54041082,184.04,184.03,30.66349815]
[1755286819308,3.56309856,184.04,184.03,10.12338594]
[1755286820414,3.56309856,184.04,184.03,15.55728258]
[1755286822112,3.56309856,184.04,184.03,0.72]
[1755286822313,18.40008589,184.04,184.01,0.03]
[1755286822519,9.89663191,184.02,184.01,0.03]
[1755286822721,3.56309856,184.02,184.01,9.43338594]
[1755286823113,12.9664845,184.02,184.01,0.03]
[1755286823325,8.02553854,184.02,184.01,10.12338594]
[1755286823518,3.56309856,184.02,184.01,10.12338594]
[1755286824020,4.46243998,184.08,184.01,10.12338594]
[1755286824234,65.22,184.09,184.01,10.12338594]
[1755286824235,3.57462297,184.07,184.06,9.40338594]
[1755286824426,3.57462297,184.07,184.06,0.69]
[1755286824662,9.00743788,184.07,184.03,0.69]
[1755286824941,9.40338594,184.04,184.01,0.03]
[1755286825146,9.40338594,184.02,184.01,0.03]
[1755286825363,12.97800891,184.02,184.01,0.03]
[1755286825511,13.66800891,184.02,184.01,0.03]
[1755286825929,19.56413795,184.02,184.01,0.03]
[1755286826116,13.66800891,184.02,184.01,0.03]
[1755286826316,8.37034169,184.02,184.01,0.03]
[1755286826518,3.90052297,184.02,184.01,0.03]
[1755286826830,3.90052297,184.02,184.01,0.72]
[1755286828016,3.90052297,184.02,184.01,10.12338594]
[1755286829148,3.90052297,184.02,184.01,15.55787319]
[1755286829444,0.06,184.09,184.05,15.10621557]
[1755286829635,0.06,184.11,184.08,9.40338594]
[1755286829836,0.06,184.11,184.1,24.50960151]
[1755286830019,3.58542278,184.15,184.11,15.10621557]
[1755286830219,3.58534267,184.17,184.14,9.40338594]
[1755286830450,15.29951498,184.23,184.12,0.69]
[1755286830451,4.46981872,184.21,184.16,9.40338594]
[1755286830632,3.58750435,184.2,184.17,0.69]
[1755286830822,12.99089029,184.19,184.14,10.09338594]
[1755286831025,54.40621557,184.28,184.17,15.10621557]
[1755286831026,7.30101532,184.25,184.17,15.10621557]
[1755286831238,3.58553627,184.24,184.18,0.69]
[1755286831446,3.58553627,184.23,184.18,0.69]
[1755286831644,3.58553627,184.22,184.18,0.69]
[1755286831950,3.58627627,184.21,184.18,0.69]
[1755286832154,9.40338594,184.22,184.18,0.69]
[1755286832442,3.58627627,184.21,184.17,9.40338594]
[1755286832745,5.15981872,184.27,184.2,9.40338594]
[1755286833042,3.58496752,184.26,184.24,9.40338594]
[1755286833254,3.58059563,184.3,184.25,9.40338594]
[1755286833255,3.58496752,184.28,184.25,9.40338594]
[1755286833466,3.58496752,184.27,184.26,9.40338594]
[1755286833750,3.58496752,184.29,184.26,10.09338594]
[1755286833920,3.64496752,184.3,184.27,9.40338594]
[1755286834121,0.06,184.3,184.27,9.40338594]
[1755286834526,0.06,184.3,184.27,10.09338594]
[1755286834755,0.06,184.3,184.28,9.40338594]
[1755286834944,0.06,184.3,184.27,0.69]
[1755286835147,0.75,184.3,184.24,0.69]
[1755286835330,0.75,184.3,184.24,10.09338594]
[1755286835331,13.04835346,184.3,184.24,10.09338594]
[1755286835527,3.64496752,184.3,184.27,9.40338594]
[1755286835733,0.06,184.3,184.29,9.40338594]
[1755286835928,0.06,184.3,184.25,15.10621557]
[1755286836128,0.06,184.3,184.29,10.09338594]
[1755286836846,0.06,184.3,184.29,30.6258319]
[1755286837048,0.06,184.3,184.29,31.16845493]
[1755286837229,0.06,184.3,184.29,30.6258319]
[1755286837630,0.06,184.3,184.29,31.16845493]
[1755286837854,0.06,184.31,184.3,15.10621557]
[1755286838031,0.06,184.31,184.3,24.50960151]
[1755286838228,0.06,184.31,184.3,25.19960151]
[1755286838535,0.06,184.31,184.3,64.67960151]
[1755286839131,0.06,184.31,184.3,70.10553748]
[1755286839845,0.06,184.31,184.3,70.64813107]
[1755286840260,0.06,184.32,184.3,70.64813107]
[1755286840456,0.06,184.32,184.31,25.19960151]
[1755286841160,0.06,184.32,184.31,30.62524309]
[1755286841365,0.06,184.32,184.31,0.69]
[1755286841530,0.06,184.32,184.31,15.51902752]
[1755286841731,0.06,184.32,184.31,0.69]
[1755286841931,0.06,184.32,184.31,9.40338594]
[1755286842444,0.06,184.32,184.31,10.09338594]
[1755286842858,0.06,184.32,184.31,15.51902752]
[1755286843060,0.06,184.32,184.31,30.62524309]
[1755286843540,0.06,184.32,184.31,32.79897809]
[1755286843866,0.06,184.33,184.31,33.34154224]
[1755286844043,0.06,184.34,184.32,25.19960151]
[1755286844247,0.06,184.34,184.33,51.05210679]
[1755286844428,0.06,184.34,184.33,51.74210679]
[1755286845234,0.06,184.34,184.33,56.6246544]
[1755286845536,0.06,184.34,184.33,96.0846544]
[1755286846558,0.06,184.34,184.33,98.2581544]
[1755286847042,0.06,184.34,184.33,72.2581544]
[1755286847963,0.06,184.34,184.33,2.1735]
[1755286848165,0.06,184.34,184.33,48.84338594]
[1755286848462,0.78,184.34,184.33,39.44]
[1755286849164,0.06,184.34,184.33,39.44]
[1755286849357,0.06,184.34,184.33,48.84338594]
[1755286849861,0.06,184.34,184.33,49.50338594]
[1755286850063,0.06,184.34,184.33,48.84338594]
[1755286851140,0.06,184.34,184.33,54.92843883]
[1755286851361,0.06,184.34,184.33,70.0346544]
[1755286851544,0.06,184.34,184.33,48.84338594]
[1755286851748,0.06,184.34,184.33,54.92843883]
[1755286852194,0.06,184.34,184.33,70.0346544]
[1755286852550,0.06,184.34,184.33,149.2346544]
[1755286853439,0.06,184.34,184.33,70.0346544]
[1755286853870,0.06,184.34,184.33,64.58960151]
[1755286854978,0.06,184.34,184.33,70.0146544]
[1755286855652,0.06,184.34,184.33,69.3546544]
[1755286855855,0.06,184.34,184.33,70.55715968]
[1755286856283,0.06,184.36,184.35,41.10621557]
[1755286856586,0.06,184.36,184.35,90.45204794]
[1755286856778,0.06,184.36,184.35,93.28519294]
[1755286857092,0.06,184.38,184.36,15.10621557]
[1755286857297,0.06,184.38,184.37,90.4519891]
[1755286857593,0.06,184.38,184.37,95.99347741]
[1755286858502,0.06,184.38,184.37,98.16638641]
[1755286858667,0.06,184.38,184.37,97.50638641]
[1755286858870,0.06,184.38,184.37,71.50638641]
[1755286859409,0.06,184.38,184.37,56.40017084]
[1755286859600,0.06,184.38,184.37,54.22726184]
[1755286860303,0.78,184.38,184.37,39.4]
[1755286860517,0.78,184.38,184.36,2.173263]
[1755286860799,0.72,184.37,184.36,39.38]
[1755286861296,0.06,184.38,184.36,48.78338594]
[1755286861602,0.06,184.38,184.37,30.59347741]
[1755286862870,0.06,184.4,184.37,30.59347741]
[1755286863193,0.06,184.4,184.39,50.50960151]
[1755286863595,0.06,184.42,184.4,15.10621557]
[1755286863779,0.06,184.42,184.41,54.24608535]
[1755286863972,0.06,184.42,184.41,54.90608535]
[1755286864791,0.06,184.42,184.4,5.42296258]
[1755286864994,0.06,184.42,184.41,9.40338594]
[1755286865172,0.06,184.42,184.41,48.78338594]